bitfinex-derivatives/quotes_BTCF0:USTF0_20260131
["timestamp","ask_amount","ask_price","bid_price","bid_amount"]
[1769862753055,0.28279992,83022.0,82982.0,0.28198089]
[1769862753253,0.28279992,83020.0,82983.0,0.1086]
[1769862753453,0.28279992,83018.0,82984.0,0.1086]
[1769862753963,0.28279992,83016.0,82984.0,0.1086]
[1769862754162,0.28279992,83014.0,82984.0,0.1086]
[1769862754359,0.3178,83015.0,82984.0,0.1086]
[1769862754360,0.28279992,83012.0,82984.0,0.1086]
[1769862756059,0.28279992,83012.0,82980.0,0.28198089]
[1769862759367,0.28279992,83012.0,82985.0,0.27714236]
[1769862760667,0.28279992,83012.0,82980.0,0.27814236]
[1769862761158,0.28279992,83012.0,82980.0,0.27714236]
[1769862761863,0.28279992,83012.0,82981.0,0.28921136]
[1769862762069,0.28279992,83012.0,82989.0,0.27714236]
[1769862764159,0.28279992,83012.0,82988.0,0.012068]
[1769862764365,0.28279992,83012.0,82987.0,0.1086]
[1769862764564,0.28403022,83010.0,82987.0,0.1086]
[1769862764764,0.28403022,83008.0,82987.0,0.1086]
[1769862764969,0.28403022,83006.0,82987.0,0.1086]
[1769862765467,0.28403022,83004.0,82981.0,0.1086]
[1769862765669,0.28403022,83002.0,82981.0,0.1086]
[1769862767276,0.1086,83003.0,82981.0,0.1086]
[1769862767277,0.28403022,83000.0,82981.0,0.1086]
[1769862767773,0.28403022,82998.0,82981.0,0.1086]
[1769862768166,0.28403022,82996.0,82981.0,0.1086]
[1769862769372,0.1086,83003.0,82982.0,0.27714236]
[1769862769877,0.1086,83003.0,82981.0,0.1086]
[1769862769878,0.1086,83003.0,82990.0,0.27714236]
[1769862771671,0.43444,83035.0,82990.0,0.27714236]
[1769862771871,0.28403022,83028.0,83000.0,0.27714236]
[1769862772066,0.28403022,83026.0,83000.0,0.27714236]
[1769862772266,0.22236336,83025.0,83000.0,0.27714236]
[1769862772469,0.28403022,83029.0,83000.0,0.27714236]
[1769862772470,0.22236336,83024.0,83000.0,0.27714236]
[1769862772671,0.11376336,83023.0,83000.0,0.27714236]
[1769862772968,0.11376336,83022.0,83000.0,0.27714236]
[1769862773270,0.11376336,83021.0,83000.0,0.27714236]
[1769862773574,0.28403022,83023.0,83000.0,0.27714236]
[1769862773777,0.39777285,83022.0,83000.0,0.27714236]
[1769862773973,0.28403022,83047.0,83006.0,0.27714236]
[1769862774178,0.28403022,83047.0,83013.0,0.27714236]
[1769862774377,0.28403022,83047.0,82989.0,0.446508]
[1769862774378,0.28403022,83047.0,83017.0,0.27714236]
[1769862776176,0.28403022,83047.0,83021.0,0.27714236]
[1769862776481,0.28403022,83047.0,83016.0,0.1086]
[1769862776482,0.1086,83051.0,83025.0,0.27714236]
[1769862776681,0.28403022,83061.0,83034.0,0.27714236]
[1769862776876,0.28403022,83061.0,83035.0,0.27714236]
[1769862778577,0.28403022,83061.0,83018.0,0.012064]
[1769862778777,0.28403022,83061.0,83015.0,0.45761507]
[1769862778778,0.28403022,83061.0,83015.0,0.27714236]
[1769862778983,0.28403022,83060.0,83002.0,0.27714236]
[1769862780683,0.28503022,83060.0,83002.0,0.27714236]
[1769862781077,0.28503022,83060.0,83007.0,0.27714236]
[1769862782588,0.52505766,83058.0,82997.0,0.10856]
[1769862782788,0.28403022,83056.0,82997.0,0.10856]
[1769862783085,0.28403022,83056.0,82998.0,0.27723456]
[1769862784092,0.28403022,83054.0,82998.0,0.27723456]
[1769862784492,0.28403022,83050.0,82998.0,9.22e-05]
[1769862784681,0.28403022,83048.0,82998.0,9.22e-05]
[1769862785982,0.28403022,83046.0,82998.0,9.22e-05]
[1769862786287,0.28403022,83044.0,82998.0,9.22e-05]
[1769862786489,0.28403022,83042.0,82998.0,9.22e-05]
[1769862786682,0.28403022,83040.0,82998.0,9.22e-05]
[1769862786875,0.29991852,83038.0,82998.0,9.22e-05]
[1769862787086,0.29991852,83036.0,82998.0,9.22e-05]
[1769862787285,0.10925509,83035.0,82998.0,9.22e-05]
[1769862787590,0.29991852,83034.0,82998.0,9.22e-05]
[1769862787787,0.29991852,83032.0,82998.0,9.22e-05]
[1769862787976,0.29991852,83030.0,82998.0,9.22e-05]
[1769862788180,0.21781509,83029.0,82998.0,9.22e-05]
[1769862788379,0.29991852,83027.0,82998.0,9.22e-05]
[1769862788586,0.29991852,83025.0,82998.0,9.22e-05]
[1769862788786,0.29991852,83023.0,82998.0,9.22e-05]
[1769862792394,0.29991852,83021.0,82998.0,9.22e-05]
[1769862792582,0.29991852,83019.0,82998.0,9.22e-05]
[1769862792889,0.29991852,83017.0,82998.0,9.22e-05]
[1769862794280,0.43436,83041.0,82998.0,9.22e-05]
[1769862794281,0.29991852,83040.0,83005.0,0.28666113]
[1769862794486,0.29991852,83038.0,83007.0,0.28666113]
[1769862794688,0.29991852,83036.0,83007.0,0.28666113]
[1769862794887,0.29991852,83034.0,83007.0,0.28666113]
[1769862796890,0.29991852,83039.0,83007.0,0.28666113]
[1769862797096,0.10934125,83038.0,83007.0,0.28666113]
[1769862797393,0.29991852,83036.0,83007.0,0.28666113]
[1769862797580,0.29991852,83051.0,83015.0,0.28666113]
[1769862797780,0.10937309,83050.0,83022.0,0.28666113]
[1769862798085,0.10856,83051.0,83024.0,0.28666113]
[1769862798284,0.10856,83051.0,83026.0,0.28666113]
[1769862798487,0.10856,83051.0,83026.0,0.29872413]
[1769862799385,0.10856,83051.0,83026.0,0.28666113]
[1769862799696,0.29991852,83050.0,83025.0,0.10856]
[1769862800086,0.29991852,83048.0,83025.0,0.10856]
[1769862800593,0.29991852,83048.0,83009.0,0.59976]
[1769862800594,0.29991852,83046.0,83002.0,0.28666113]
[1769862800796,0.45132,83049.0,83002.0,0.29872713]
[1769862800797,0.29991852,83044.0,83002.0,0.29872713]
[1769862800984,0.29991852,83042.0,83002.0,0.28666113]
[1769862801297,0.29991852,83040.0,83001.0,0.10856]
[1769862801492,0.29991852,83038.0,83001.0,0.10856]
[1769862801694,0.29991852,83036.0,83001.0,0.10856]
[1769862801993,0.29991852,83034.0,83001.0,0.10856]
[1769862802191,0.29991852,83032.0,83001.0,0.10856]
[1769862802393,0.29991852,83030.0,83001.0,0.10856]
[1769862802694,0.29991852,83028.0,83001.0,0.10856]
[1769862802887,0.29991852,83026.0,83001.0,0.10856]
[1769862806894,0.29991852,83030.0,83002.0,0.28666113]
[1769862808888,0.29991852,83030.0,82996.0,0.46195574]
[1769862808889,0.29991852,83030.0,82996.0,0.43089687]
[1769862809693,0.29991852,83030.0,82990.0,0.14423574]
[1769862810293,0.29991852,83030.0,82989.0,0.53945687]
[1769862810596,0.29991852,83030.0,82989.0,0.43089687]
[1769862811299,0.29991852,83030.0,82989.0,0.28666113]
[1769862811597,0.30091852,83030.0,82998.0,0.28675333]
[1769862812395,0.29991852,83030.0,82998.0,0.28675333]
[1769862817904,0.29991852,83030.0,82998.0,0.29882033]
[1769862818206,0.29991852,83030.0,83002.0,0.28678983]
[1769862820809,0.29991852,83030.0,82998.0,9.22e-05]
[1769862823909,0.30091852,83030.0,82998.0,9.22e-05]
[1769862825597,0.27892577,83019.0,82998.0,9.22e-05]
[1769862825811,0.27892577,83017.0,82979.0,0.14423574]
[1769862826105,0.10856,83018.0,82976.0,0.19254271]
[1769862826106,0.27892577,83015.0,82980.0,0.29473779]
[1769862826710,0.27892577,83013.0,82980.0,0.29473779]
[1769862827305,0.27892577,83013.0,82977.0,0.14423574]
[1769862827608,0.27892577,83013.0,82974.0,0.40329779]
[1769862828913,0.27892577,83013.0,82975.0,0.29473779]
[1769862831010,0.27892577,83003.0,82975.0,0.29473779]
[1769862831209,0.27892577,83001.0,82975.0,0.29473779]
[1769862831413,0.27892577,83000.0,82976.0,0.29473779]
[1769862832411,0.44736,83001.0,82976.0,0.29473779]
[1769862832815,0.72628577,83001.0,82976.0,0.29473779]
[1769862833819,0.25775183,82990.0,82976.0,0.29473779]
[1769862835120,0.5366776,82990.0,82969.0,0.120671]
[1769862835515,0.25775183,82990.0,82969.0,0.120671]
[1769862837118,0.25775183,82990.0,82970.0,0.29473779]
[1769862837315,0.25775183,82990.0,82969.0,0.120671]
[1769862838231,0.27892577,82989.0,82969.0,0.120671]
[1769862841529,0.27892577,82989.0,82969.0,0.1086]
[1769862841831,0.27892577,82989.0,82930.0,0.48203324]
[1769862841832,0.31207,82975.0,82952.0,0.012073]
[1769862842027,0.3,82973.0,82952.0,0.012073]
[1769862842226,0.1086922,82974.0,82952.0,0.012073]
[1769862842422,0.3,82973.0,82954.0,0.012073]
[1769862842827,0.1086922,82974.0,82954.0,0.012073]
[1769862843527,0.01207,82973.0,82954.0,0.012073]
[1769862844433,9.22e-05,82974.0,82957.0,0.012073]
[1769862845134,0.1086,82973.0,82957.0,0.012073]
[1769862847631,0.1086,82973.0,82954.0,0.012073]
[1769862847837,0.01207,82972.0,82954.0,0.012073]
[1769862849237,0.1086,82973.0,82954.0,0.012073]
[1769862849437,0.1086,82973.0,82946.0,0.1086]
[1769862849835,9.22e-05,82974.0,82946.0,0.1086]
[1769862850627,9.22e-05,82974.0,82959.0,0.012072]
[1769862855831,0.312071,82972.0,82957.0,0.10864]
[1769862856537,0.01207,82973.0,82957.0,0.10864]
[1769862857436,9.22e-05,82974.0,82957.0,0.10864]
[1769862858231,0.3,82973.0,82957.0,0.10864]
[1769862859229,0.3,82972.0,82957.0,0.10864]
[1769862863429,0.312071,82972.0,82957.0,0.10457848]
[1769862863633,0.50658584,82967.0,82947.0,0.120714]
[1769862863841,0.20658584,82960.0,82947.0,0.120714]
[1769862866837,0.20658584,82970.0,82951.0,0.012073]
[1769862868341,0.20658584,82970.0,82947.0,0.10864]
[1769862868342,0.10864,82973.0,82958.0,0.012072]
[1769862868738,9.22e-05,82974.0,82958.0,0.012072]
[1769862869944,0.3121622,82974.0,82952.0,0.012073]
[1769862870537,0.0121622,82974.0,82952.0,0.012073]
[1769862873343,9.22e-05,82974.0,82947.0,0.10864]
[1769862874540,9.22e-05,82974.0,82952.0,0.001]
[1769862874948,9.22e-05,82974.0,82954.0,0.012073]
[1769862875951,9.22e-05,82974.0,82954.0,0.013073]
[1769862877851,9.22e-05,82974.0,82956.0,0.012073]
[1769862878946,9.22e-05,82974.0,82958.0,0.012072]
[1769862879147,9.22e-05,82974.0,82956.0,0.001]
[1769862879349,9.22e-05,82974.0,82959.0,0.10864]
[1769862881049,9.22e-05,82974.0,82963.0,0.012072]
[1769862881257,9.22e-05,82974.0,82960.0,0.012072]
[1769862881553,9.22e-05,82974.0,82959.0,0.10964]
[1769862883153,9.22e-05,82974.0,82959.0,0.10864]
[1769862884645,9.22e-05,82974.0,82959.0,0.120712]
[1769862886950,9.22e-05,82974.0,82959.0,0.10864]
[1769862887156,0.10864,82991.0,82959.0,0.34970985]
[1769862887353,0.3,82996.0,82973.0,0.01207]
[1769862887354,0.10864,82996.0,82973.0,0.01207]
[1769862887655,0.120707,82996.0,82976.0,0.01207]
[1769862887856,0.120707,82996.0,82973.0,0.10864]
[1769862888153,0.10864,82996.0,82977.0,0.01207]
[1769862890154,0.10864,82996.0,82977.0,0.01307]
[1769862891157,0.10864,82996.0,82977.0,0.01207]
[1769862891455,0.10864,82996.0,82977.0,0.01307]
[1769862892653,0.40864,82996.0,82977.0,0.01307]
[1769862893158,0.40864,82996.0,82977.0,0.01207]
[1769862893346,0.40864,82996.0,82977.0,0.01307]
[1769862893954,0.40864,82996.0,82973.0,0.10864]
[1769862893955,0.3,82995.0,82973.0,0.10864]
[1769862894155,0.3,82993.0,82963.0,0.1086]
[1769862894361,0.29925686,82991.0,82963.0,0.1086]
[1769862894545,0.10864,82996.0,82963.0,0.1086]
[1769862894546,0.29925686,82989.0,82963.0,0.1086]
[1769862894752,0.29925686,82988.0,82963.0,0.1086]
[1769862895755,0.29925686,82983.0,82963.0,0.1086]
[1769862895956,0.29925686,82982.0,82963.0,0.1086]
[1769862896459,0.29925686,82982.0,82964.0,0.04272036]
[1769862899458,0.29925686,82982.0,82965.0,0.012071]
[1769862899855,0.1086,82983.0,82968.0,0.04851793]
[1769862900561,0.40785686,82983.0,82964.0,0.06058993]
[1769862902863,0.29925686,82982.0,82964.0,0.06058993]
[1769862903657,0.29925686,82982.0,82963.0,0.1086]
[1769862903856,0.29925686,82977.0,82963.0,0.1086]
[1769862913475,0.28200454,82988.0,82967.0,0.05398637]
[1769862913680,0.012068,82989.0,82969.0,0.05437771]
[1769862913882,0.28187409,82993.0,82971.0,0.05437771]
[1769862914587,0.28187409,82993.0,82963.0,0.1086]
[1769862914790,0.012065,83007.0,82953.0,0.34966985]
[1769862914791,0.28187409,82981.0,82953.0,0.34966985]
[1769862914990,0.28187409,82979.0,82958.0,0.012072]
[1769862915392,0.28187409,82979.0,82961.0,0.012072]
[1769862918694,0.120669,82984.0,82953.0,0.1086]
[1769862918695,0.28278148,82973.0,82953.0,0.1086]
[1769862918891,0.28278148,82971.0,82953.0,0.1086]
[1769862919096,0.28278148,82969.0,82953.0,0.1086]
[1769862919297,0.28278148,82967.0,82946.0,0.1086]
[1769862921901,0.2773884,82965.0,82946.0,0.1086]
[1769862922199,0.012071,82966.0,82946.0,0.1086]
[1769862922200,0.2773884,82963.0,82946.0,0.1086]
[1769862922500,0.2773884,82957.0,82930.0,0.4596429]
[1769862922698,0.2773884,82957.0,82935.0,0.10864]
[1769862923598,0.2773884,82955.0,82935.0,0.10864]
[1769862924703,0.2773884,82955.0,82933.0,0.012076]
[1769862926603,0.2773884,82955.0,82933.0,0.29547234]
[1769862930408,0.2773884,82955.0,82936.0,0.291589]
[1769862932002,9.803e-05,82956.0,82943.0,0.291589]
[1769862932318,0.2773884,82966.0,82947.0,0.291589]
[1769862932608,0.20659678,82980.0,82931.0,0.57612]
[1769862932609,0.2773884,82964.0,82948.0,0.303663]
[1769862932808,0.3860284,82964.0,82948.0,0.303663]
[1769862933119,0.10864,82964.0,82948.0,0.303663]
[1769862933308,0.2773884,82963.0,82948.0,0.012074]
[1769862933510,0.10864,82964.0,82948.0,0.303663]
[1769862933907,0.3860284,82964.0,82948.0,0.303663]
[1769862934214,0.2773884,82973.0,82954.0,0.291589]
[1769862938616,0.5336,82987.0,82952.0,0.10864]
[1769862938617,0.29616961,82987.0,82964.0,0.27403292]
[1769862938823,0.29616961,82985.0,82957.0,0.27403292]
[1769862939114,0.5592,82993.0,82952.0,0.120713]
[1769862939115,0.29616961,82979.0,82952.0,0.120713]
[1769862939519,0.29616961,82977.0,82952.0,0.10864]
[1769862939718,0.29616961,82972.0,82952.0,0.10864]
[1769862939908,0.29616961,82970.0,82952.0,0.10864]
[1769862942820,0.29616961,82970.0,82953.0,0.28774445]
[1769862943006,0.29616961,82970.0,82947.0,0.29981845]
[1769862944319,0.29616961,82970.0,82943.0,0.29981945]
[1769862944514,0.2840187,82968.0,82943.0,0.012075]
[1769862944711,0.2840187,82963.0,82940.0,0.10864]
[1769862945120,0.2840187,82963.0,82941.0,0.29981945]
[1769862945312,0.2840187,82967.0,82946.0,0.28774445]
[1769862945512,0.3926587,82971.0,82946.0,0.28774445]
[1769862945712,0.2840187,82969.0,82946.0,0.28774445]
[1769862945917,0.4039061,82968.0,82946.0,0.28774445]
[1769862946116,0.10864,82971.0,82951.0,0.28774445]
[1769862946522,0.3926587,82971.0,82951.0,0.28774445]
[1769862946723,0.2840187,82970.0,82951.0,0.28774445]
[1769862947220,0.2840187,82970.0,82952.0,0.29981745]
[1769862951026,0.2840187,82970.0,82956.0,0.28774445]
[1769862952416,0.10864,82971.0,82954.0,0.28774445]
[1769862952617,0.10864,82971.0,82958.0,0.28774445]
[1769862953916,0.10864,82971.0,82962.0,0.28774445]
[1769862954118,0.3926587,82982.0,82962.0,0.28774445]
[1769862954321,0.11994716,82981.0,82964.0,0.29981645]
[1769862954624,0.11994716,82980.0,82964.0,0.29981645]
[1769862954824,0.2840187,82981.0,82964.0,0.28774445]
[1769862955023,0.11994573,82980.0,82964.0,0.28774445]
[1769862955224,0.2840187,82981.0,82964.0,0.28774445]
[1769862955425,0.11994144,82980.0,82964.0,0.28774445]
[1769862955622,0.2840187,82981.0,82964.0,0.28774445]
[1769862955822,0.11994144,82980.0,82964.0,0.28774445]
[1769862956025,0.2840187,82981.0,82964.0,0.28774445]
[1769862956229,0.12043847,82980.0,82964.0,0.28774445]
[1769862956418,0.2840187,82981.0,82964.0,0.28774445]
[1769862957014,0.10864,82982.0,82964.0,0.29981545]
[1769862957923,0.10864,82982.0,82968.0,0.012071]
[1769862958127,0.10864,82982.0,82968.0,0.29981545]
[1769862960424,0.10864,82982.0,82973.0,0.28774445]
[1769862960622,0.10864,82992.0,82973.0,0.28774445]
[1769862960819,0.12045258,82991.0,82981.0,0.012069]
[1769862961021,0.10864,82992.0,82982.0,0.28774445]
[1769862961422,0.3926587,83003.0,82984.0,0.28774445]
[1769862962024,0.2840187,83002.0,82984.0,0.28774445]
[1769862962926,0.2840187,83002.0,82978.0,0.012069]
[1769862963129,0.2840187,83002.0,82973.0,0.01207]
[1769862963331,0.12033617,83001.0,82973.0,0.01207]
[1769862963533,0.2840187,83002.0,82974.0,0.01207]
[1769862964422,0.2840187,83000.0,82970.0,0.012071]
[1769862964634,0.2840187,82998.0,82970.0,0.012071]
[1769862964829,0.2840187,82994.0,82970.0,0.012071]
[1769862965132,0.10864,82993.0,82970.0,0.012071]
[1769862965333,0.2840187,82992.0,82970.0,0.012071]
[1769862966731,0.2840187,82992.0,82970.0,0.29397683]
[1769862966930,0.2840187,82992.0,82972.0,0.01207]
[1769862967731,0.2840187,82992.0,82976.0,0.28190583]
[1769862967933,0.10864,82993.0,82976.0,0.28190583]
[1769862970034,0.10864,82993.0,82980.0,0.20659678]
[1769862971029,0.10864,82993.0,82981.0,0.28190583]
[1769862971438,0.10864,82993.0,82981.0,0.29397483]
[1769862971629,0.28026251,83004.0,82981.0,0.29397483]
[1769862971630,0.28026251,83002.0,82981.0,0.28190583]
[1769862971836,0.28026251,83002.0,82992.0,0.20659678]
[1769862974837,0.28026251,83007.0,82992.0,0.48850261]
[1769862975036,0.28026251,83007.0,82992.0,0.20659678]
[1769862978337,0.28026251,83007.0,82992.0,0.48850261]
[1769862978938,0.28026251,83007.0,82992.0,0.21866378]
[1769862979232,0.28026251,83007.0,82992.0,0.50056961]
[1769862979434,0.28026251,83025.0,82995.0,0.28190583]
[1769862979639,0.28026251,83023.0,83010.0,0.20659678]
[1769862979830,0.28026251,83021.0,83010.0,0.20659678]
[1769862980139,0.28026251,83019.0,83010.0,0.1976241]
[1769862980334,0.28026251,83017.0,82990.0,0.012068]
[1769862980539,0.28026251,83015.0,82980.0,0.20659678]
[1769862980731,0.28026251,83013.0,82980.0,0.20659678]
[1769862980933,0.28026251,83011.0,82980.0,0.20659678]
[1769862981127,0.28026251,83009.0,82980.0,0.20659678]
[1769862981335,0.28026251,83007.0,82980.0,0.20659678]
[1769862981537,0.28026251,83005.0,82980.0,0.20659678]
[1769862981736,0.28026251,83003.0,82980.0,0.20659678]
[1769862982041,0.28026251,83001.0,82980.0,0.20659678]
[1769862982347,0.28026251,82999.0,82980.0,0.20659678]
[1769862982638,0.28026251,82997.0,82980.0,0.20659678]
[1769862982840,0.28026251,82995.0,82980.0,0.20659678]
[1769862983035,0.28026251,82993.0,82980.0,0.20659678]
[1769862983236,0.28026251,82991.0,82980.0,0.20659678]
[1769862983539,0.28026251,82989.0,82980.0,0.20659678]
[1769862983735,0.28026251,82987.0,82980.0,0.20659678]
[1769862984233,0.28026251,82987.0,82977.0,0.20659678]
[1769862985329,0.28026251,82987.0,82981.0,0.001]
[1769862986139,0.28026251,82985.0,82981.0,0.001]
[1769862986847,0.28026251,82985.0,82977.0,0.20659678]
[1769862989538,0.28026251,82985.0,82967.0,0.29397683]
[1769862990246,0.28026251,82985.0,82967.0,0.012071]
[1769862994450,0.28026251,82979.0,82964.0,0.00013517]
[1769862994659,0.28026251,82977.0,82964.0,0.00013517]
[1769862995253,0.28026251,82977.0,82959.0,0.1086]
[1769862996354,0.28026251,82975.0,82959.0,0.1086]
[1769863003262,0.28026251,82975.0,82960.0,0.28375644]
[1769863003562,0.28026251,82975.0,82959.0,0.1086]
[1769863004864,0.28026251,82975.0,82959.0,0.39235644]
[1769863005164,0.28026251,82975.0,82959.0,0.1086]
[1769863006755,0.28026251,82975.0,82959.0,0.39235644]
[1769863007951,0.28026251,82975.0,82959.0,0.1086]
[1769863010063,0.28026251,82975.0,82960.0,0.28375644]
[1769863010264,0.28026251,82975.0,82959.0,0.1086]
[1769863014263,0.28026251,82975.0,82956.0,0.28375644]
[1769863014658,0.28026251,82975.0,82954.0,0.012073]
[1769863015064,0.27035096,82971.0,82947.0,0.10864]
[1769863015261,0.00012316,82976.0,82936.0,0.24106985]
[1769863015262,0.27035096,82965.0,82936.0,0.24106985]
[1769863015469,0.27035096,82963.0,82933.0,0.28375644]
[1769863015667,0.28242296,82961.0,82934.0,0.29583244]
[1769863015972,0.27035096,82959.0,82934.0,0.29583244]
[1769863019763,0.120712,82962.0,82934.0,0.29583244]
[1769863019964,9e-05,82964.0,82945.0,0.28375644]
[1769863020170,9e-05,82964.0,82947.0,0.28375644]
[1769863022867,0.27044096,82964.0,82946.0,0.10864]
[1769863023169,0.27044096,82964.0,82937.0,0.28375644]
[1769863023472,0.27035096,82962.0,82947.0,0.001]
[1769863025467,0.27035096,82960.0,82937.0,0.001]
[1769863026268,0.27035096,82960.0,82936.0,0.10864]
[1769863028370,0.27035096,82960.0,82934.0,0.012076]
[1769863028572,0.27658354,82952.0,82918.0,0.012078]
[1769863028775,0.27658354,82948.0,82918.0,0.012078]
[1769863028974,0.27658354,82946.0,82918.0,0.120718]
[1769863029367,0.27658354,82944.0,82918.0,0.10864]
[1769863029567,0.27658354,82942.0,82918.0,0.10864]
[1769863029770,0.27658354,82940.0,82922.0,0.00108804]
[1769863031275,0.27658354,82940.0,82922.0,8.804e-05]
[1769863032177,0.27658354,82940.0,82922.0,0.27753605]
[1769863032969,0.10872524,82941.0,82922.0,0.27753605]
[1769863033271,0.38530878,82941.0,82922.0,0.27753605]
[1769863033973,0.27658354,82940.0,82922.0,0.27753605]
[1769863037578,0.27658354,82940.0,82922.0,8.804e-05]
[1769863042379,0.27658354,82933.0,82909.0,0.01208]
[1769863042683,0.27658354,82931.0,82905.0,0.01208]
[1769863042981,0.27658354,82929.0,82905.0,0.01208]
[1769863043179,0.27658354,82928.0,82905.0,0.01208]
[1769863043380,0.27658354,82926.0,82905.0,0.01208]
[1769863043678,0.27658354,82926.0,82902.0,0.27744801]
[1769863043679,0.27658354,82922.0,82899.0,0.10868]
[1769863044676,0.27658354,82922.0,82897.0,0.012081]
[1769863045676,0.27658354,82920.0,82894.0,0.27744801]
[1769863045883,0.37116,82925.0,82889.0,0.012082]
[1769863045884,0.27658354,82915.0,82889.0,0.012082]
[1769863046080,0.27658354,82913.0,82889.0,0.012082]
[1769863047171,0.27658354,82911.0,82889.0,0.012082]
[1769863047479,0.27658354,82911.0,82885.0,0.012083]
[1769863047683,0.27658354,82911.0,82887.0,0.012083]
[1769863048275,0.27658354,82908.0,82886.0,0.10868]
[1769863048685,0.27658354,82906.0,82886.0,0.10868]
[1769863048987,0.27658354,82906.0,82887.0,0.012083]
[1769863050878,0.10868,82909.0,82886.0,0.10868]
[1769863050879,0.27658354,82904.0,82886.0,0.10868]
[1769863051070,0.27658354,82902.0,82886.0,0.10868]
[1769863051471,0.27658354,82902.0,82885.0,0.27744801]
[1769863051781,0.28866454,82902.0,82880.0,0.20679446]
[1769863052082,0.27658354,82898.0,82880.0,0.20679446]
[1769863052276,0.27658354,82897.0,82880.0,0.20679446]
[1769863053079,0.27658354,82892.0,82872.0,0.05]
[1769863053282,0.27658354,82888.0,82872.0,0.05]
[1769863053685,0.27658354,82886.0,82872.0,0.05]
[1769863053978,0.27658354,82886.0,82870.0,0.20654694]
[1769863054282,0.27658354,82882.0,82870.0,0.20679446]
[1769863054472,0.27658354,82880.0,82870.0,0.20679446]
[1769863055271,0.27658354,82876.0,82860.0,0.20679446]
[1769863055479,0.27658354,82874.0,82860.0,0.20679446]
[1769863055782,0.27658354,82872.0,82860.0,0.20679446]
[1769863056385,0.27658354,82870.0,82860.0,0.20679446]
[1769863056886,0.27658354,82870.0,82848.0,0.10872]
[1769863057077,0.28866854,82870.0,82850.0,0.20679446]
[1769863057486,0.29290405,82866.0,82860.0,0.20679446]
[1769863058181,0.29290405,82866.0,82841.0,0.30523163]
[1769863058386,0.29290405,82866.0,82850.0,0.20679446]
[1769863058584,0.29290405,82882.0,82851.0,0.29314263]
[1769863058783,0.29290405,82882.0,82872.0,0.20679446]
[1769863059384,0.30498805,82882.0,82872.0,0.20679446]
[1769863059583,0.00013804,82881.0,82860.0,0.20679446]
[1769863059886,0.29290405,82878.0,82860.0,0.20679446]
[1769863061588,0.00013804,82881.0,82868.0,0.20679446]
[1769863061989,0.27499333,82890.0,82868.0,0.48731004]
[1769863062294,0.10872,82889.0,82880.0,0.20679446]
[1769863063194,0.00011535,82888.0,82880.0,0.20679446]
[1769863063584,0.00011535,82888.0,82866.0,0.38923558]
[1769863063892,0.00011535,82888.0,82867.0,0.28051558]
[1769863064191,0.27510868,82888.0,82866.0,0.10872]
[1769863064686,0.27510868,82888.0,82866.0,0.38923558]
[1769863064687,0.27499333,82886.0,82866.0,0.38923558]
[1769863064892,0.27499333,82886.0,82866.0,0.10872]
[1769863065194,0.27499333,82902.0,82876.0,0.28051558]
[1769863065394,0.27499333,82901.0,82876.0,0.28051558]
[1769863065592,0.27499333,82899.0,82876.0,0.28051558]
[1769863065898,0.27499333,82895.0,82866.0,0.10872]
[1769863066088,0.012081,82898.0,82867.0,0.29260158]
[1769863066289,0.31824,82900.0,82871.0,0.28051558]
[1769863066593,0.27499333,82899.0,82871.0,0.28051558]
[1769863067700,0.28707233,82913.0,82883.0,0.29259858]
[1769863067992,0.27499333,82913.0,82883.0,0.28051558]
[1769863068195,0.27499333,82911.0,82885.0,0.28051558]
[1769863068583,0.012079,82912.0,82885.0,0.28051558]
[1769863068584,0.28707233,82916.0,82885.0,0.28051558]
[1769863068782,0.27499333,82914.0,82885.0,0.28051558]
[1769863069183,0.27499333,82914.0,82887.0,0.28051558]
[1769863069391,0.10876,82918.0,82901.0,0.28051558]
[1769863070191,0.10876,82918.0,82903.0,0.28051558]
[1769863070499,0.27499333,82906.0,82874.0,0.28051558]
[1769863070689,0.27499333,82904.0,82874.0,0.28051558]
[1769863070993,0.27499333,82902.0,82874.0,0.28051558]
[1769863071195,0.27499333,82902.0,82879.0,0.29259958]
[1769863071492,0.60356,82924.0,82879.0,0.28051558]
[1769863071493,0.27499333,82900.0,82879.0,0.28051558]
[1769863072396,0.10872,82901.0,82879.0,0.28051558]
[1769863072989,0.27499333,82918.0,82880.0,0.25856595]
[1769863073194,0.259048,82981.0,82880.0,0.25856595]
[1769863073195,0.27499333,82916.0,82892.0,0.28051558]
[1769863073496,0.27499333,82914.0,82892.0,0.28051558]
[1769863073692,0.10872,82913.0,82892.0,0.28051558]
[1769863074495,0.27499333,82912.0,82891.0,0.10872]
[1769863074694,0.27499333,82910.0,82891.0,0.10872]
[1769863074893,0.28707233,82915.0,82892.0,0.28051558]
[1769863075196,0.10872,82931.0,82892.0,0.28051558]
[1769863075197,0.12116764,82914.0,82892.0,0.28051558]
[1769863075394,0.27499333,82919.0,82892.0,0.28051558]
[1769863075594,0.6616607,82918.0,82892.0,0.28051558]
[1769863075796,0.1211807,82917.0,82892.0,0.28051558]
[1769863075994,0.39617403,82916.0,82892.0,0.28051558]
[1769863076196,0.1211807,82915.0,82892.0,0.28051558]
[1769863076995,0.27499333,82914.0,82891.0,0.10872]
[1769863077294,0.27499333,82912.0,82891.0,0.10872]
[1769863077488,0.27499333,82910.0,82891.0,0.10872]
[1769863078907,0.27499333,82908.0,82875.0,0.10872]
[1769863079198,0.27499333,82906.0,82876.0,0.38923558]
[1769863079399,0.27499333,82904.0,82876.0,0.38923558]
[1769863079799,0.60254224,82960.0,82876.0,0.38923558]
[1769863079800,0.27499333,82924.0,82883.0,0.28051558]
[1769863080093,0.27499333,82915.0,82881.0,0.012084]
[1769863080300,0.27499333,82911.0,82881.0,0.012084]
[1769863080496,0.27499333,82909.0,82881.0,0.012084]
[1769863080696,0.27499333,82907.0,82881.0,0.29259958]
[1769863081096,0.27499333,82907.0,82881.0,0.28051558]
[1769863082095,0.27499333,82919.0,82886.0,0.28051558]
[1769863082294,0.12124952,82918.0,82893.0,0.28051558]
[1769863082494,0.27499333,82919.0,82893.0,0.28051558]
[1769863083101,0.38371333,82925.0,82895.0,0.28051558]
[1769863083294,0.27499333,82923.0,82895.0,0.28051558]
[1769863083493,0.12123253,82922.0,82895.0,0.28051558]
[1769863083697,0.27499333,82922.0,82895.0,0.28051558]
[1769863084705,0.012077,82924.0,82895.0,0.28051558]
[1769863084901,0.012077,82924.0,82887.0,0.10872]
[1769863084902,0.012075,82943.0,82906.0,0.28051558]
[1769863085095,0.36152534,82960.0,82908.0,0.28051558]
[1769863085096,0.28706833,82941.0,82908.0,0.28051558]
[1769863085297,0.27499333,82939.0,82908.0,0.28051558]
[1769863085598,0.10872,82938.0,82908.0,0.28051558]
[1769863085791,0.10872,82938.0,82910.0,0.28051558]